bitfinex-derivatives/quotes_SOLF0:USTF0_20250623
["timestamp","ask_amount","ask_price","bid_price","bid_amount"]
[1750711415350,11.20603413,141.36,141.25,42.8]
[1750711415546,11.20603413,141.32,141.24,2.418]
[1750711415755,7.0733,141.31,141.28,7.0742]
[1750711415947,42.8,141.32,141.24,2.418]
[1750711416139,11.20603413,141.3,141.23,42.8]
[1750711416744,11.20603413,141.28,141.23,42.8]
[1750711417153,11.20603413,141.28,141.21,11.20603413]
[1750711417952,11.20603413,141.28,141.21,7.0778]
[1750711418347,11.20603413,141.3,141.21,11.20603413]
[1750711418650,7.0753,141.27,141.23,7.0768]
[1750711419152,11.20603413,141.3,141.23,7.0768]
[1750711419351,11.20603413,141.28,141.22,7.0774]
[1750711419650,7.0759,141.26,141.21,11.20603413]
[1750711419853,7.2249,141.31,141.25,7.0761]
[1750711420049,7.2249,141.31,141.25,11.20603413]
[1750711420257,14.2983,141.31,141.25,11.20603413]
[1750711420451,7.2249,141.31,141.25,11.20603413]
[1750711420857,7.0736,141.3,141.25,11.20603413]
[1750711421055,7.0736,141.3,141.27,7.0748]
[1750711421558,7.2249,141.31,141.26,7.0753]
[1750711421950,11.22245402,141.27,141.18,7.0794]
[1750711422151,11.22843328,141.22,141.13,53.80843328]
[1750711422655,42.58,141.23,141.15,11.22843328]
[1750711423250,18.24443328,141.25,141.17,11.22843328]
[1750711423451,18.24443328,141.25,141.17,53.80843328]
[1750711423648,18.24443328,141.25,141.17,42.58]
[1750711424051,11.22843328,141.22,141.14,42.58]
[1750711424260,11.22843328,141.2,141.11,42.58]
[1750711424666,11.22843328,141.2,141.13,7.0818]
[1750711425160,11.22843328,141.2,141.12,7.0823]
[1750711425358,42.58,141.23,141.11,42.58]
[1750711425563,11.22843328,141.22,141.13,11.22843328]
[1750711425764,11.22843328,141.22,141.16,7.0806]
[1750711425967,11.22843328,141.22,141.13,11.22843328]
[1750711426269,62.13364553,141.23,141.13,19.55364553]
[1750711426563,62.13364553,141.23,141.11,42.58]
[1750711427065,7.0794,141.19,141.11,42.58]
[1750711427466,7.0794,141.19,141.16,7.0805]
[1750711428362,7.0796,141.18,141.15,7.0809]
[1750711428561,49.662,141.18,141.09,2.3574]
[1750711428859,7.0814,141.15,141.09,2.3574]
[1750711429061,49.6988,141.18,141.09,2.3574]
[1750711429564,7.0814,141.15,141.12,7.0822]
[1750711429862,49.6988,141.18,141.09,21.91104553]
[1750711430253,7.0811,141.15,141.12,7.0823]
[1750711431062,7.0808,141.16,141.13,7.0821]
[1750711431261,49.6988,141.18,141.09,21.91104553]
[1750711431262,49.6988,141.18,141.11,19.55364553]
[1750711431464,14.1514,141.26,141.13,19.55364553]
[1750711431465,42.6,141.21,141.13,19.55364553]
[1750711431762,42.6,141.24,141.15,19.55364553]
[1750711431964,42.6,141.24,141.15,62.15364553]
[1750711432162,7.0776,141.22,141.19,7.0787]
[1750711432365,42.6,141.24,141.15,62.15364553]
[1750711433164,7.0784,141.21,141.18,7.0793]
[1750711433562,42.6,141.24,141.15,62.15364553]
[1750711433764,7.0784,141.21,141.16,19.55364553]
[1750711433967,42.6,141.24,141.16,19.55364553]
[1750711434163,49.662,141.24,141.16,19.55364553]
[1750711434464,49.662,141.24,141.17,7.0798]
[1750711434856,7.0794,141.19,141.16,26.63404553]
[1750711435351,7.0794,141.19,141.16,19.55364553]
[1750711436163,7.0794,141.19,141.16,26.63414553]
[1750711437062,7.0788,141.2,141.16,19.55364553]
[1750711437263,42.6,141.24,141.16,19.55364553]
[1750711437454,42.6,141.24,141.15,42.6]
[1750711437659,42.6,141.24,141.16,19.55364553]
[1750711437865,7.0785,141.21,141.16,19.55364553]
[1750711438262,42.6,141.24,141.16,19.55364553]
[1750711438468,42.6,141.24,141.19,7.0788]
[1750711438970,7.0775,141.23,141.19,7.0788]
[1750711439669,42.6,141.24,141.18,7.0795]
[1750711440265,42.6,141.24,141.16,19.55364553]
[1750711440469,62.15364553,141.24,141.15,42.6]
[1750711440672,62.15364553,141.24,141.14,19.55364553]
[1750711441269,7.0797,141.18,141.15,7.0808]
[1750711442568,19.55364553,141.22,141.13,148.84]
[1750711443069,42.6,141.24,141.15,19.55364553]
[1750711443673,42.6,141.24,141.17,19.55364553]
[1750711444068,7.0766,141.24,141.21,7.0778]
[1750711444269,7.0187,141.25,141.19,19.55364553]
[1750711444674,7.0187,141.25,141.21,7.0778]
[1750711444982,7.0187,141.25,141.17,19.55364553]
[1750711445363,7.0776,141.23,141.19,7.0788]
[1750711445569,7.0187,141.25,141.16,62.15364553]
[1750711446272,26.57234553,141.25,141.16,42.6]
[1750711446470,33.63434553,141.25,141.16,42.6]
[1750711446868,33.63434553,141.25,141.17,7.0798]
[1750711447483,26.57234553,141.25,141.17,7.0798]
[1750711448379,7.0789,141.2,141.17,7.0798]
[1750711448580,42.4,141.23,141.16,53.82760967]
[1750711449075,7.0782,141.21,141.18,7.0792]
[1750711449988,7.0785,141.2,141.17,7.0797]
[1750711450178,42.4,141.23,141.16,53.82760967]
[1750711450381,7.0782,141.21,141.18,7.0791]
[1750711452088,7.0785,141.2,141.17,7.0796]
[1750711455792,7.079,141.19,141.17,7.0796]
[1750711455992,42.4,141.23,141.17,7.0796]
[1750711456188,7.0786,141.2,141.17,7.0796]
[1750711456391,7.0786,141.2,141.18,7.0794]
[1750711456997,7.0786,141.2,141.17,7.0797]
[1750711457491,42.4,141.23,141.14,11.22760967]
[1750711457492,53.62760967,141.23,141.14,11.22760967]
[1750711457885,7.0804,141.17,141.14,11.22760967]
[1750711458191,11.22760967,141.21,141.12,11.22760967]
[1750711458394,7.0812,141.15,141.12,11.22760967]
[1750711458585,42.42,141.18,141.12,11.22760967]
[1750711458781,11.22760967,141.17,141.11,42.4]
[1750711458991,11.22760967,141.17,141.08,54.87692242]
[1750711458992,18.07800967,141.17,141.08,54.87692242]
[1750711459188,18.07800967,141.17,141.08,61.96112242]
[1750711459690,11.22760967,141.15,141.08,53.64760967]
[1750711459893,42.42,141.14,141.06,13.66110967]
[1750711460198,42.42,141.14,141.06,11.22760967]
[1750711460701,42.42,141.14,141.08,11.22760967]
[1750711460894,42.42,141.14,141.1,7.0832]
[1750711461092,7.0822,141.13,141.1,7.0832]
[1750711461489,13.18340737,141.24,141.1,7.0832]
[1750711461490,8.78893824,141.23,141.12,22.45878388]
[1750711461692,4.7295,141.27,141.19,11.22939194]
[1750711461899,4.7295,141.27,141.21,11.22939194]
[1750711462296,47.1495,141.27,141.19,19.53559631]
[1750711462497,54.2115,141.27,141.2,7.0781]
[1750711462694,7.0772,141.23,141.2,7.0781]
[1750711462893,47.1495,141.27,141.21,7.0775]
[1750711463203,7.0764,141.24,141.17,2.2357]
[1750711463401,47.1495,141.27,141.22,7.0774]
[1750711463900,47.1495,141.27,141.17,4.5091]
[1750711464298,7.076,141.25,141.17,66.5091]
[1750711464497,47.1495,141.27,141.22,19.53313141]
[1750711464698,2.4015,141.3,141.26,19.53313141]
[1750711464901,7.073,141.31,141.26,19.53313141]
[1750711465099,2.58882425,141.32,141.26,19.53313141]
[1750711465300,49.94750439,141.33,141.26,19.53313141]
[1750711465608,42.42,141.33,141.26,26.60833141]
[1750711466099,7.0737,141.3,141.26,26.60833141]
[1750711466307,42.42,141.33,141.26,26.60833141]
[1750711466502,42.42,141.33,141.26,19.53313141]
[1750711468101,42.42,141.33,141.28,19.53313141]
[1750711468607,42.4,141.36,141.3,19.53313141]
[1750711468800,42.4,141.36,141.32,19.53313141]
[1750711469601,7.0712,141.35,141.32,19.53313141]
[1750711470111,49.4706,141.36,141.32,26.60553141]
[1750711470604,7.0706,141.36,141.32,26.60553141]
[1750711470802,47.0746,141.39,141.32,26.60553141]
[1750711471205,47.0746,141.39,141.28,2.3114]
[1750711471206,47.0746,141.39,141.31,7.0727]
[1750711471403,47.0746,141.39,141.31,19.53313141]
[1750711471600,47.0746,141.39,141.33,19.53313141]
[1750711472201,2.3726,141.4,141.35,19.53313141]
[1750711472402,616.1077,141.43,141.36,7.07]
[1750711472605,616.1077,141.43,141.35,19.53313141]
[1750711473001,7.0692,141.39,141.35,26.60373141]
[1750711473605,7.0686,141.4,141.36,7.0703]
[1750711473897,4.6477,141.43,141.37,19.53313141]
[1750711474310,7.068,141.41,141.37,26.60273141]
[1750711474710,4.6477,141.43,141.37,19.53313141]
[1750711475016,7.0675,141.42,141.38,7.069]
[1750711475212,4.6477,141.43,141.37,19.53313141]
[1750711475402,7.0683,141.41,141.37,26.60273141]
[1750711475815,4.6477,141.43,141.37,19.53313141]
[1750711476004,11.715,141.43,141.39,7.0688]
[1750711476309,4.6477,141.43,141.39,7.0688]
[1750711476505,9.5011,141.43,141.39,7.0688]
[1750711476717,7.0671,141.43,141.39,26.60193141]
[1750711477008,7.0662,141.45,141.41,26.60103141]
[1750711477209,46.9891,141.47,141.41,19.53313141]
[1750711477401,46.9891,141.47,141.4,7.0683]
[1750711477599,7.067,141.43,141.4,7.0683]
[1750711477913,46.9891,141.47,141.4,7.0683]
[1750711478100,7.0664,141.45,141.41,7.0679]
[1750711478709,7.0666,141.44,141.4,7.0682]
[1750711479117,7.0666,141.44,141.39,19.53313141]
[1750711479712,46.9891,141.47,141.41,19.53313141]
[1750711480612,7.0658,141.46,141.42,7.0669]
[1750711480808,46.9891,141.47,141.42,7.0669]
[1750711481111,7.0657,141.46,141.42,7.0669]
[1750711481316,7.0657,141.46,141.43,7.0668]
[1750711481512,46.9891,141.47,141.43,7.0668]
[1750711481513,42.38,141.47,141.43,7.0668]
[1750711481713,7.0656,141.46,141.43,7.0668]
[1750711481917,2.2391,141.49,141.43,19.53313141]
[1750711482418,42.16,141.5,141.46,7.0653]
[1750711482914,42.16,141.53,141.49,19.53313141]
[1750711483216,7.0647,141.48,141.44,19.53313141]
[1750711483417,42.16,141.53,141.43,19.53313141]
[1750711483808,7.0651,141.47,141.43,19.53313141]
[1750711484210,7.0651,141.47,141.44,7.0664]
[1750711484722,7.0656,141.46,141.43,18.25147067]
[1750711485517,44.3755,141.49,141.43,11.18477067]
[1750711486619,7.0657,141.46,141.43,18.25147067]
[1750711486817,44.3755,141.49,141.43,7.0667]
[1750711487213,7.066,141.45,141.43,7.0667]
[1750711487412,46.6862,141.49,141.43,7.0667]
[1750711487714,7.066,141.45,141.42,18.25197067]
[1750711488617,7.066,141.45,141.41,49.2277]
[1750711488917,46.6862,141.49,141.42,11.18477067]
[1750711489322,7.0652,141.47,141.44,7.0661]
[1750711489913,7.0655,141.46,141.43,7.0667]
[1750711490112,46.6862,141.49,141.42,11.18477067]
[1750711491019,7.0662,141.45,141.42,18.25197067]
[1750711491411,7.0662,141.45,141.42,11.18477067]
[1750711491613,46.6862,141.49,141.42,11.18477067]
[1750711491916,57.87097067,141.49,141.41,42.16]
[1750711492114,2.2333,141.48,141.42,11.18477067]
[1750711493124,7.0662,141.45,141.42,18.25187067]
[1750711493415,2.2333,141.48,141.42,11.18477067]
[1750711494128,2.2333,141.48,141.43,7.0666]
[1750711494425,42.16,141.49,141.44,11.18477067]
[1750711494818,42.16,141.49,141.42,11.18477067]
[1750711495117,42.16,141.49,141.41,11.18477067]
[1750711495321,42.16,141.49,141.43,11.18477067]
[1750711495728,42.16,141.49,141.42,11.18477067]
[1750711496419,7.0654,141.46,141.43,7.0666]
[1750711497521,11.18477067,141.48,141.42,7.0671]
[1750711497728,11.18477067,141.48,141.38,53.32477067]
[1750711497925,11.18477067,141.44,141.36,622.04477067]
[1750711498116,53.32477067,141.44,141.36,11.18477067]
[1750711499018,6.8643,141.43,141.36,11.18477067]
[1750711499224,7.0686,141.4,141.36,11.18477067]
[1750711499424,6.8643,141.43,141.36,11.18477067]
[1750711499620,7.0683,141.41,141.38,7.0692]
[1750711499828,6.8643,141.43,141.35,42.14]
[1750711500125,6.8643,141.43,141.36,11.18477067]
[1750711500418,11.18477067,141.42,141.32,69.2093]
[1750711500621,18.24677067,141.42,141.34,11.18477067]
[1750711500821,7.0691,141.39,141.35,7.0706]
[1750711501016,7.0691,141.39,141.35,18.25537067]
[1750711501211,6.8643,141.43,141.35,11.18477067]
[1750711501417,42.14,141.47,141.42,11.18921514]
[1750711501621,49.0189,141.5,141.44,11.18921514]
[1750711501814,6.8789,141.5,141.44,11.18921514]
[1750711502018,7.064,141.49,141.45,7.0657]
[1750711502219,6.8789,141.5,141.44,11.18921514]
[1750711502420,6.8789,141.5,141.46,7.0652]
[1750711502611,6.8789,141.5,141.44,11.18921514]
[1750711502817,42.14,141.51,141.46,11.18921514]
[1750711503722,7.0639,141.5,141.46,18.25461514]
[1750711503924,42.14,141.51,141.48,11.18921514]
[1750711504227,2.2658,141.53,141.48,11.18921514]
[1750711504728,46.7531,141.54,141.5,11.18921514]
[1750711504729,42.14,141.54,141.5,11.18921514]
[1750711505527,42.14,141.54,141.48,53.32921514]
[1750711505725,53.32921514,141.54,141.46,11.18921514]
[1750711506029,7.0637,141.5,141.46,11.18921514]
[1750711506227,2.2182,141.53,141.46,11.18921514]
[1750711506627,7.82672583,141.53,141.46,11.18921514]
[1750711506829,2.247,141.52,141.46,11.18921514]
[1750711507023,7.0642,141.49,141.46,11.18921514]
[1750711507525,7.0646,141.48,141.46,11.18921514]
[1750711507727,2.247,141.52,141.44,60.39551514]
[1750711508027,7.0646,141.48,141.44,60.39551514]
[1750711508230,7.86569703,141.52,141.45,7.0658]
[1750711508422,2.247,141.52,141.45,7.0658]
[1750711508832,7.38345882,141.52,141.45,7.0658]
[1750711509026,7.0644,141.48,141.44,60.39541514]
[1750711509225,7.38345882,141.52,141.44,60.39541514]
[1750711509226,2.247,141.52,141.46,11.18921514]
[1750711509426,7.0637,141.5,141.46,18.25421514]
[1750711509725,2.247,141.52,141.46,11.18921514]
[1750711509927,7.0634,141.5,141.46,18.25421514]
[1750711510326,2.2182,141.53,141.48,11.18921514]
[1750711510532,7.0629,141.51,141.48,11.18921514]
[1750711510926,42.14,141.54,141.48,11.18921514]
[1750711511229,42.14,141.54,141.48,18.25341514]
[1750711511230,7.0626,141.52,141.48,18.25341514]
[1750711511731,4.7798,141.56,141.5,11.18921514]
[1750711512130,7.0614,141.54,141.5,18.25211514]
[1750711512330,4.7798,141.56,141.5,11.18921514]
[1750711512636,7.0619,141.53,141.5,11.18921514]
[1750711512831,4.7798,141.56,141.5,11.18921514]
[1750711513229,7.062,141.53,141.5,11.18921514]
[1750711515730,7.0615,141.54,141.5,18.25221514]
[1750711516136,7.0615,141.54,141.5,11.18921514]
[1750711516436,7.0615,141.54,141.5,18.25241514]
[1750711516631,7.062,141.53,141.5,18.25241514]
[1750711516840,4.7798,141.56,141.5,18.25241514]
[1750711517033,7.0617,141.54,141.5,18.25241514]
[1750711517746,4.7798,141.56,141.51,7.0629]
[1750711517940,4.7798,141.56,141.5,11.18921514]
[1750711517941,5.65926102,141.55,141.5,11.18921514]
[1750711518140,4.7798,141.56,141.5,11.18921514]
[1750711518344,7.0617,141.54,141.5,18.25231514]
[1750711519242,7.0612,141.55,141.51,7.0628]
[1750711520044,7.0614,141.54,141.5,18.25241514]
[1750711520639,7.0614,141.54,141.5,11.18921514]
[1750711521339,7.0611,141.55,141.5,11.18921514]
[1750711521742,44.2922,141.57,141.52,11.18921514]
[1750711521936,41.9,141.57,141.54,11.18921514]
[1750711522237,21.96484791,141.56,141.48,7.0643]
[1750711522439,10.77589979,141.55,141.47,13.48731514]
[1750711522638,5.65323053,141.54,141.47,13.48731514]
[1750711522838,2.3298,141.55,141.47,20.55191514]
[1750711523037,7.0629,141.51,141.47,20.55191514]
[1750711523236,7.0629,141.51,141.48,7.0643]
[1750711523436,7.0634,141.5,141.47,13.48731514]
[1750711523644,47.55486639,141.53,141.45,53.08921514]
[1750711523843,44.3291,141.53,141.46,7.0652]
[1750711524240,7.064,141.49,141.46,7.0652]
[1750711525042,41.9,141.53,141.47,11.18921514]
[1750711525348,9.3911,141.55,141.51,7.0626]
[1750711525539,2.3298,141.55,141.5,11.18921514]
[1750711525733,41.9,141.56,141.5,11.18921514]
[1750711525942,7.061,141.55,141.5,11.18921514]
[1750711526844,7.061,141.55,141.51,7.0626]
[1750711527157,41.9,141.56,141.45,103.9]
[1750711527344,53.08921514,141.56,141.48,11.18921514]
[1750711527748,7.0627,141.52,141.48,11.18921514]
[1750711527946,11.18921514,141.54,141.46,11.18921514]
[1750711528245,7.0635,141.5,141.46,11.18921514]
[1750711528847,7.0635,141.5,141.47,7.0648]
[1750711529548,41.88,141.52,141.46,11.18921514]
[1750711529741,41.88,141.52,141.45,41.9]
[1750711529945,53.06921514,141.52,141.4,41.88]
[1750711530249,11.18921514,141.5,141.42,11.18921514]
[1750711530643,7.0653,141.47,141.43,7.0666]
[1750711530852,18.25121514,141.5,141.43,7.0666]
[1750711531250,7.062,141.5,141.38,4.8126]
[1750711531444,11.18921514,141.46,141.38,2.4436]
[1750711531643,7.067,141.43,141.39,7.0686]
[1750711531946,7.067,141.43,141.38,2.4436]
[1750711532151,53.08921514,141.46,141.38,2.4436]
[1750711532547,60.15121514,141.46,141.39,11.18921514]
[1750711532744,60.15121514,141.46,141.38,2.4436]
[1750711532950,53.08921514,141.46,141.37,53.08921514]
[1750711533151,6.9153,141.45,141.37,53.08921514]
[1750711533550,13.9773,141.45,141.37,53.08921514]
[1750711533757,7.0677,141.42,141.38,7.0694]
[1750711533954,13.9773,141.45,141.38,7.0694]
[1750711534157,6.9153,141.45,141.38,7.0694]
[1750711534462,6.9153,141.45,141.39,7.0686]
[1750711534649,6.9153,141.45,141.37,53.08921514]
[1750711535264,6.9153,141.45,141.39,7.0686]
[1750711535760,7.0675,141.42,141.38,7.0692]
[1750711536261,7.0675,141.42,141.37,53.08921514]
[1750711536660,7.0671,141.43,141.39,7.0688]
[1750711536966,7.0671,141.43,141.37,53.08921514]
[1750711536967,41.9,141.46,141.41,11.18921514]
[1750711537257,48.9657,141.46,141.42,7.0671]
[1750711537452,48.9657,141.46,141.41,11.18921514]
[1750711537654,52.86921514,141.49,141.41,11.18921514]
[1750711537856,41.68,141.49,141.41,11.18921514]
[1750711538155,7.0657,141.46,141.42,7.067]
[1750711538956,7.0657,141.46,141.43,7.0668]
[1750711540765,41.68,141.49,141.43,7.0668]
[1750711541361,11.18921514,141.47,141.38,11.18921514]
[1750711541761,11.18921514,141.47,141.39,7.0686]
[1750711542467,7.0677,141.42,141.39,7.0686]
[1750711543469,7.0677,141.42,141.38,18.25841514]
[1750711544362,7.0677,141.42,141.39,7.0688]
[1750711544963,7.0671,141.43,141.39,7.0688]
[1750711545163,41.68,141.45,141.39,7.0688]
[1750711545365,41.68,141.45,141.38,18.25841514]
[1750711545669,7.0677,141.42,141.38,18.25841514]
[1750711546067,44.0784,141.45,141.38,18.25841514]
[1750711546565,55.26761514,141.45,141.37,48.9697]
[1750711546865,7.0681,141.41,141.37,7.0697]
[1750711547260,7.0688,141.4,141.36,11.18921514]
[1750711547464,4.7244,141.44,141.36,11.18921514]
[1750711548163,7.0674,141.42,141.38,7.0689]
[1750711549272,7.068,141.41,141.38,7.0689]
[1750711550571,12.07149979,141.44,141.37,7.34709979]
[1750711551073,7.0678,141.42,141.38,7.0691]
[1750711551462,7.0678,141.42,141.39,7.0688]
[1750711552071,7.0671,141.43,141.39,7.0688]
[1750711552868,7.0675,141.42,141.39,7.34709979]
[1750711553070,4.7244,141.44,141.35,4.7036]
[1750711553371,12.07149979,141.44,141.38,7.069]
[1750711553772,7.068,141.41,141.37,7.34709979]
[1750711553974,7.068,141.41,141.37,14.41649979]
[1750711554175,12.07149979,141.44,141.37,7.34709979]
[1750711554369,7.0679,141.41,141.38,7.0691]
[1750711554974,12.07149979,141.44,141.37,14.41659979]
[1750711555174,12.07149979,141.44,141.37,7.34709979]
[1750711555674,7.0677,141.42,141.37,7.34709979]
[1750711555974,7.0677,141.42,141.38,7.0691]
[1750711556360,7.0679,141.41,141.38,7.0691]
[1750711556568,7.0679,141.41,141.38,14.41619979]
[1750711556774,12.07149979,141.44,141.38,14.41619979]
[1750711557571,7.0679,141.41,141.38,7.0691]
[1750711557878,7.0679,141.41,141.38,14.41619979]
[1750711559673,7.0679,141.41,141.35,7.34709979]
[1750711559674,41.68,141.41,141.35,7.34709979]
[1750711559973,41.68,141.41,141.33,7.34709979]
[1750711560279,41.68,141.41,141.35,7.34709979]
[1750711560572,41.68,141.41,141.37,7.34709979]
[1750711561372,7.0684,141.4,141.37,14.41669979]
[1750711561572,41.68,141.41,141.37,7.34709979]
[1750711562276,41.7,141.46,141.39,7.34709979]
[1750711562477,41.7,141.47,141.44,7.34709979]
[1750711562677,7.0653,141.47,141.44,14.41319979]
[1750711563078,14.2736,141.49,141.44,7.34709979]
[1750711563375,7.2094,141.49,141.44,7.34709979]
[1750711563879,4.7862,141.49,141.46,7.34709979]
[1750711565179,7.0646,141.48,141.46,7.34709979]
[1750711565373,4.7862,141.49,141.44,7.34709979]
[1750711565572,7.0649,141.48,141.44,14.41319979]
[1750711566386,4.7862,141.49,141.45,7.0659]
[1750711566677,4.7862,141.49,141.44,7.34709979]
[1750711566878,7.0649,141.47,141.44,14.41319979]
[1750711567183,4.7862,141.49,141.43,7.34709979]
[1750711567677,4.7862,141.49,141.43,14.41359979]
[1750711567985,4.7862,141.49,141.43,7.34709979]
[1750711568670,7.0652,141.47,141.43,14.41379979]
[1750711569274,7.065,141.47,141.43,7.34709979]
[1750711569780,7.0655,141.46,141.43,14.41379979]
[1750711570084,4.7862,141.49,141.43,14.41379979]
[1750711570285,7.065,141.47,141.43,14.41379979]
[1750711571289,4.7862,141.49,141.43,14.41379979]
[1750711571579,4.7862,141.49,141.43,7.34709979]
[1750711571775,7.0654,141.46,141.41,7.34709979]
[1750711572087,4.7862,141.49,141.43,14.41359979]
[1750711572292,4.7862,141.49,141.43,7.34709979]
[1750711572580,4.7862,141.49,141.43,14.41389979]
[1750711572793,7.0652,141.47,141.43,14.41389979]
[1750711572978,4.7862,141.49,141.43,14.41389979]
[1750711573378,7.0653,141.47,141.43,14.41389979]
[1750711573578,12.13329979,141.49,141.4,41.7]
[1750711573779,12.13329979,141.49,141.4,49.04709979]
[1750711573780,7.34709979,141.47,141.4,49.04709979]
[1750711573981,7.34709979,141.47,141.4,41.7]
[1750711574295,5.65530267,141.46,141.38,2.3959]
[1750711574584,7.34709979,141.45,141.39,7.0688]
[1750711575091,7.34709979,141.45,141.38,7.34709979]
[1750711575276,7.34709979,141.45,141.38,14.41599979]
[1750711575482,9.58919979,141.47,141.4,7.34709979]
[1750711575695,5.65956236,141.46,141.37,43.7671]
[1750711575886,2.2421,141.47,141.4,7.34332388]
[1750711576085,41.42,141.48,141.42,7.34332388]
[1750711576279,41.42,141.48,141.43,7.0667]
[1750711576490,7.0659,141.45,141.42,7.34070969]
[1750711576681,7.0659,141.45,141.42,14.40770969]
[1750711576890,7.0659,141.45,141.42,7.34070969]
[1750711577391,7.0659,141.45,141.37,43.7671]
[1750711577392,43.8526,141.51,141.44,7.34070969]
[1750711577590,5.64474382,141.5,141.46,7.34070969]
[1750711577777,7.0642,141.49,141.46,14.40600969]
[1750711577976,41.42,141.51,141.46,7.34070969]
[1750711578387,41.42,141.51,141.43,43.752]
[1750711578388,41.42,141.51,141.48,14.40450969]
[1750711578992,48.483,141.51,141.48,14.40450969]
[1750711579193,41.42,141.51,141.48,14.40450969]
[1750711579395,48.4828,141.51,141.48,14.40450969]
[1750711579989,7.0633,141.5,141.48,7.34070969]
[1750711580591,48.483,141.51,141.48,14.40490969]
[1750711581089,48.483,141.51,141.48,7.34070969]
[1750711581485,7.0635,141.5,141.48,7.34070969]
[1750711581794,41.42,141.51,141.48,7.34070969]
[1750711582197,7.0633,141.5,141.48,7.34070969]
[1750711582696,41.42,141.51,141.48,7.34070969]
[1750711582898,48.483,141.51,141.48,14.40490969]
[1750711583893,46.2067,141.54,141.48,7.34070969]
[1750711584093,41.42,141.54,141.51,7.34070969]
[1750711584599,4.8509,141.58,141.47,48.74070969]
[1750711584600,7.0605,141.56,141.53,14.40220969]
[1750711584995,7.0608,141.55,141.53,7.34070969]
[1750711585194,7.0608,141.55,141.49,2.2496]
[1750711585195,7.34070969,141.56,141.48,4.5415]
[1750711585395,7.34070969,141.56,141.49,7.34070969]
[1750711585596,7.34070969,141.56,141.49,14.40420969]
[1750711585899,7.34070969,141.56,141.49,7.34070969]
[1750711586590,12.99928433,141.56,141.49,7.34070969]
[1750711586785,7.0613,141.54,141.49,7.34070969]
[1750711587095,7.34070969,141.56,141.49,7.34070969]
[1750711587496,7.063,141.51,141.49,7.34070969]
[1750711587809,7.34070969,141.56,141.49,14.40430969]
[1750711588385,7.0623,141.52,141.49,14.40430969]
[1750711589201,7.0628,141.51,141.49,7.34070969]
[1750711590491,7.34070969,141.54,141.47,48.74070969]
[1750711590688,48.74070969,141.54,141.47,48.74070969]
[1750711591096,7.063,141.51,141.48,7.0639]
[1750711591603,7.0635,141.5,141.47,55.80520969]
[1750711591799,7.34070969,141.52,141.46,7.34070969]
[1750711592003,7.34070969,141.5,141.44,195.38070969]
[1750711592202,7.0645,141.48,141.45,7.0654]
[1750711592702,7.34070969,141.5,141.45,7.0654]
[1750711593001,2.3811,141.53,141.48,7.34070969]
[1750711593204,41.4,141.54,141.48,7.34070969]
[1750711593497,41.4,141.54,141.47,7.34070969]
[1750711593693,7.34070969,141.53,141.47,7.34070969]
[1750711593889,7.0635,141.5,141.47,14.40520969]
[1750711594098,41.4,141.54,141.47,14.40520969]
[1750711594099,41.4,141.54,141.47,7.34070969]
[1750711594407,7.34070969,141.52,141.47,7.34070969]
[1750711594703,7.064,141.49,141.47,7.34070969]
[1750711595504,48.74070969,141.54,141.47,7.34070969]
[1750711595897,7.0631,141.51,141.48,7.064]
[1750711596407,7.0625,141.52,141.49,7.0635]
[1750711597701,48.74070969,141.54,141.47,7.34070969]
[1750711597702,7.0628,141.51,141.48,7.0639]
[1750711598098,7.0628,141.51,141.48,7.0641]
[1750711599400,7.34070969,141.49,141.41,2.2712]
[1750711599602,41.12,141.48,141.42,7.34070969]
[1750711599804,41.12,141.48,141.42,14.40750969]
[1750711599805,48.1846,141.48,141.42,14.40750969]
[1750711600406,7.0651,141.47,141.42,14.40750969]
[1750711600709,41.12,141.48,141.42,7.0668]
[1750711601004,7.34070969,141.47,141.41,7.34070969]
[1750711601202,7.34070969,141.47,141.4,41.12]
[1750711601409,7.34070969,141.41,141.33,12.69995697]